bitfinex/quotes_ETHUSD_20260302
["timestamp","ask_amount","ask_price","bid_price","bid_amount"]
[1772471405706,1.21526852,2057.2,2056.4,1.84219792]
[1772471406016,1.21509895,2057.5,2056.5,1.32003478]
[1772471406174,1.21887178,2057.4,2056.2,3.9841797]
[1772471406504,1.21887178,2057.4,2056.3,0.949]
[1772471406803,1.21887178,2057.4,2056.4,0.949]
[1772471406977,1.21509895,2057.5,2056.6,3.1622327]
[1772471407178,4.86019231,2057.6,2056.8,1.21548035]
[1772471407401,4.86019231,2057.6,2056.8,2.53551513]
[1772471407973,4.86019231,2057.6,2056.9,1.84219792]
[1772471408205,1.21488968,2057.8,2056.9,1.84219792]
[1772471408406,0.002,2057.1,2056.9,1.84219792]
[1772471408611,1.21488968,2057.8,2057.0,1.32003478]
[1772471408812,1.21092557,2058.5,2057.3,1.32003478]
[1772471409108,1.21092557,2058.2,2057.0,0.949]
[1772471409318,1.21092557,2058.2,2056.6,1.32003478]
[1772471409319,1.20758473,2057.8,2056.6,1.32003478]
[1772471409610,0.002,2057.3,2056.5,2.16462719]
[1772471410106,0.002,2057.3,2056.5,4.00682511]
[1772471410605,0.002,2057.3,2056.8,1.84219792]
[1772471410982,0.002,2057.6,2056.9,1.32003478]
[1772471411305,0.002,2057.6,2056.6,1.32003478]
[1772471411607,0.002,2057.6,2056.7,2.26903478]
[1772471412093,0.002,2057.6,2056.9,1.32003478]
[1772471412484,0.002,2057.6,2057.1,3.1622327]
[1772471412878,0.002,2057.6,2056.7,0.949]
[1772471412879,0.002,2057.6,2056.7,1.32003478]
[1772471413293,0.002,2057.6,2056.7,2.26903478]
[1772471413494,0.002,2057.6,2056.5,2.16462762]
[1772471413804,0.002,2057.6,2056.6,1.32003478]
[1772471414190,0.002,2057.6,2056.8,1.84219792]
[1772471414394,0.002,2057.6,2056.9,1.32003478]
[1772471415410,0.002,2057.6,2056.8,1.84219792]
[1772471415411,1.21506682,2057.5,2056.5,2.16462762]
[1772471415908,1.21506682,2057.5,2056.6,3.10857804]
[1772471416110,1.21506682,2057.5,2056.7,1.26638012]
[1772471417021,1.21700906,2057.6,2056.8,1.26638012]
[1772471417602,0.002,2057.6,2056.9,1.21542126]
[1772471417798,0.002,2057.6,2056.9,2.40450295]
[1772471418322,0.002,2057.6,2056.7,1.21553945]
[1772471418525,1.17814165,2057.6,2056.6,3.35363888]
[1772471419396,0.002,2057.6,2056.8,1.18908169]
[1772471420126,0.002,2057.6,2056.9,0.949]
[1772471420331,0.002,2057.6,2056.5,1.18908169]
[1772471420533,1.17191904,2057.6,2056.5,6.05154342]
[1772471420741,1.17191904,2057.6,2056.6,0.949]
[1772471421231,1.17191904,2057.6,2056.6,2.13808169]
[1772471421542,0.002,2057.4,2056.6,2.13808169]
[1772471422305,1.16375887,2057.3,2056.1,1.21586867]
[1772471423519,1.16375887,2057.3,2056.0,1.18908169]
[1772471423846,1.16375887,2057.3,2056.0,2.40503216]
[1772471424143,1.15766544,2057.1,2056.0,1.18908169]
[1772471424316,1.15766544,2057.1,2055.9,2.16497672]
[1772471425645,1.15766544,2057.1,2055.7,2.40518843]
[1772471425844,1.15465544,2057.0,2055.7,2.40518843]
[1772471426343,1.15165199,2056.8,2055.7,2.40518843]
[1772471426560,1.15165199,2056.7,2055.6,2.16515226]
[1772471427350,1.15165199,2056.7,2055.7,1.18908169]
[1772471427514,1.15165199,2056.7,2055.6,2.16515226]
[1772471427515,1.21542126,2056.9,2055.9,1.18908169]
[1772471428151,2.36111251,2056.9,2055.9,1.18908169]
[1772471428355,1.14569125,2056.6,2055.5,1.21623257]
[1772471428530,1.14569125,2056.6,2055.5,2.16523257]
[1772471429145,1.14569125,2056.6,2055.5,1.21623257]
[1772471429449,1.14273607,2056.4,2055.4,0.001]
[1772471430349,1.2157759,2056.3,2055.4,0.001]
[1772471430551,1.2157759,2056.3,2055.5,1.18908169]
[1772471431635,2.34859856,2056.6,2055.5,1.18908169]
[1772471432037,3.48549115,2056.6,2055.5,1.18908169]
[1772471432238,1.1339849,2056.5,2055.5,1.18908169]
[1772471432457,1.21571678,2056.4,2055.6,1.21618992]
[1772471433354,1.13109249,2056.3,2055.7,0.001]
[1772471433853,2.34871678,2056.4,2055.7,0.001]
[1772471434224,4.86286714,2056.5,2055.7,0.001]
[1772471434225,1.21570417,2056.5,2055.7,1.19008169]
[1772471434425,1.12822478,2056.6,2055.7,2.40617128]
[1772471434728,1.12822478,2056.6,2055.7,1.21708959]
[1772471435156,1.12822478,2056.6,2055.7,0.001]
[1772471436479,1.12251206,2056.4,2055.7,0.001]
[1772471436774,1.133,2056.3,2055.7,0.001]
[1772471438679,1.21583503,2056.2,2055.7,0.001]
[1772471439388,2.32990168,2056.2,2055.7,0.001]
[1772471442502,4.86334014,2056.6,2055.7,1.19008169]
[1772471442503,1.137,2056.6,2055.7,1.19008169]
[1772471442800,1.10571949,2056.4,2055.7,0.001]
[1772471444978,1.10571949,2056.4,2055.5,0.001]
[1772471444979,1.10022306,2056.2,2055.5,0.001]
[1772471445185,1.09922306,2056.0,2055.5,0.001]
[1772471445488,1.09922306,2056.0,2055.2,0.001]
[1772471445658,1.09649925,2055.8,2055.2,0.001]
[1772471445853,1.09649925,2055.6,2055.2,0.001]
[1772471446962,1.21624908,2055.5,2055.2,0.001]
[1772471447377,2.30474145,2055.5,2055.2,0.001]
[1772471447577,1.08849237,2055.4,2055.2,0.001]
[1772471447886,1.138,2055.3,2055.2,0.001]
[1772471448285,1.08768063,2055.2,2054.5,0.001]
[1772471448787,1.21624908,2055.5,2054.5,2.41616766]
[1772471448788,1.139,2055.1,2054.5,2.41616766]
[1772471449084,1.21654501,2055.0,2054.5,0.001]
[1772471449288,1.21654501,2055.0,2054.5,1.21783788]
[1772471450059,2.35550933,2055.1,2054.5,2.41616831]
[1772471450366,1.139,2055.1,2054.6,1.19833043]
[1772471450579,2.35549628,2055.1,2054.6,1.19833043]
[1772471451470,2.35549628,2055.1,2054.6,2.41508759]
[1772471451874,2.35549628,2055.1,2054.6,2.41510899]
[1772471452867,1.07719277,2055.0,2054.5,0.001]
[1772471453190,1.07719277,2055.0,2053.8,2.16322042]
[1772471453495,1.07358962,2054.8,2053.8,2.16322042]
[1772471453784,3.43231225,2054.7,2053.8,2.16322042]
[1772471454163,3.43231225,2054.7,2053.7,1.21727993]
[1772471454559,3.43231225,2054.7,2053.6,2.41566918]
[1772471454956,2.29031225,2054.7,2053.7,1.19833043]
[1772471455184,1.21672263,2054.7,2053.7,1.19833043]
[1772471455381,1.142,2054.9,2053.9,1.19833043]
[1772471455583,1.21666342,2054.8,2053.9,2.41549175]
[1772471455783,1.06845374,2054.7,2053.7,1.2172727]
[1772471456771,1.142,2054.7,2053.8,1.19833043]
[1772471457681,1.21678185,2054.6,2053.9,2.41552698]
[1772471459182,1.21660421,2054.9,2054.0,1.19833043]
[1772471459404,2.27485914,2054.9,2054.0,1.19833043]
[1772471459603,1.05825493,2054.8,2054.0,1.19833043]
[1772471459894,1.21672263,2054.7,2054.1,0.001]
[1772471460504,1.21654501,2055.0,2054.1,1.19933043]
[1772471460711,1.21840946,2055.3,2054.3,1.19833043]
[1772471460906,1.05573462,2055.2,2054.3,1.19833043]
[1772471461207,1.142,2055.1,2054.3,1.19833043]
[1772471461588,2.19523154,2055.1,2054.1,0.001]
[1772471461906,2.19523154,2055.1,2054.2,1.19833043]
[1772471462134,1.21654501,2055.0,2054.3,1.21695954]
[1772471463183,1.05073964,2054.9,2054.1,1.21807266]
[1772471463387,1.05073964,2054.9,2054.1,0.001]
[1772471463596,1.05073964,2054.9,2054.1,1.21806763]
[1772471463816,1.05073964,2054.9,2054.1,0.001]
[1772471464016,1.05073964,2054.9,2054.1,1.21806794]
[1772471464205,2.264924,2054.8,2054.1,0.001]
[1772471464508,1.04578302,2054.6,2053.9,0.001]
[1772471466094,2.26022372,2054.4,2053.9,0.001]
[1772471466295,1.142,2054.3,2053.9,0.001]
[1772471466504,1.04090448,2054.2,2053.0,1.19833043]
[1772471466704,1.03990448,2053.7,2052.9,0.003]
[1772471467017,2.58238554,2053.8,2052.9,0.003]
[1772471467018,2.18190448,2053.6,2052.9,0.003]
[1772471467226,1.03747512,2053.4,2052.1,1.19833043]
[1772471467388,1.03747512,2053.2,2051.9,3.94659581]
[1772471467604,0.065536,2053.3,2051.9,5.14492624]
[1772471467605,2.17947512,2053.1,2051.9,5.14492624]
[1772471467986,1.03747512,2053.0,2051.9,5.14492624]
[1772471468183,1.21769775,2053.1,2052.0,1.19833043]
[1772471468388,1.142,2053.0,2052.0,1.19833043]
[1772471468582,2.17709422,2053.0,2052.0,1.19833043]
[1772471468826,1.21769775,2053.1,2052.0,1.19833043]
[1772471469004,1.142,2053.0,2052.0,1.19833043]
[1772471469212,1.141,2053.2,2052.0,1.19833043]
[1772471469512,1.03277354,2053.1,2052.1,1.19833043]
[1772471469719,1.03277354,2053.1,2051.9,3.94659581]
[1772471469884,1.03277354,2053.1,2051.9,1.21835289]
[1772471470089,1.03277354,2053.1,2051.8,1.19833043]
[1772471470288,2.58238554,2052.3,2050.8,1.36108713]
[1772471470487,0.065536,2052.7,2051.0,2.41724803]
[1772471470488,1.03037709,2052.1,2051.0,2.41724803]
[1772471470703,1.141,2052.1,2051.1,1.19833043]
[1772471471114,1.03037709,2052.5,2051.1,1.19833043]
[1772471471487,1.02799227,2052.8,2051.1,1.19833043]
[1772471471812,1.14,2052.7,2051.1,1.19833043]
[1772471472130,2.24334226,2053.0,2051.3,1.19833043]
[1772471472290,2.24334226,2053.0,2051.5,1.19833043]
[1772471472291,1.02561211,2053.0,2051.5,1.19833043]
[1772471472490,3.80002971,2053.2,2051.5,1.19833043]
[1772471472491,1.14,2053.1,2051.5,1.19833043]
[1772471473145,1.02561211,2053.4,2051.5,1.19833043]
[1772471473625,9.68572761,2053.9,2051.5,1.19833043]
[1772471473626,2.23454659,2053.9,2051.5,1.19833043]
[1772471473826,1.14,2054.0,2051.9,1.19833043]
[1772471474123,1.098,2054.2,2052.3,1.19933043]
[1772471474321,1.098,2054.2,2052.5,1.19833043]
[1772471474491,1.098,2054.2,2052.7,1.19833043]
[1772471474892,1.02324762,2054.4,2052.7,1.19833043]
[1772471475218,2.24015355,2054.4,2052.7,1.19833043]
[1772471475518,2.16224762,2054.4,2052.7,1.19833043]
[1772471476318,2.23667661,2054.8,2052.9,1.20326151]
[1772471476619,1.01998169,2054.8,2052.9,1.20326151]
[1772471476824,1.21866928,2054.8,2052.9,1.20326151]
[1772471477015,2.23431825,2054.8,2052.9,1.20326151]
[1772471477232,1.01333087,2054.4,2053.1,1.20326151]
[1772471477832,1.01101887,2054.1,2052.8,1.21784879]
[1772471478035,2.14901887,2054.0,2052.8,2.41067301]
[1772471478196,1.21719655,2053.9,2052.8,2.41067301]
[1772471478624,2.22766606,2053.9,2052.8,1.21784879]
[1772471479119,1.0081696,2053.8,2052.8,1.21784879]
[1772471479323,1.84564595,2053.7,2052.8,1.21784879]
[1772471479525,1.0081696,2053.8,2052.8,1.21784879]
[1772471479725,1.139,2053.8,2052.8,1.21784879]
[1772471479910,1.139,2053.8,2052.8,2.41067301]
[1772471480517,2.35625723,2053.8,2052.8,2.41067301]
[1772471480701,1.21716174,2054.0,2052.9,1.19282422]
[1772471481025,2.3549454,2054.4,2053.0,1.19282422]
[1772471481529,1.2169454,2054.4,2053.0,1.19282422]
[1772471481730,2.3549454,2054.4,2053.0,1.19282422]
[1772471482028,1.00359971,2054.3,2053.0,2.13882422]
[1772471482323,1.00359971,2054.3,2053.1,1.19282422]
[1772471482532,2.22058418,2054.3,2053.2,2.41043575]
[1772471482726,1.00133771,2054.7,2053.3,1.19282422]
[1772471483024,2.35482477,2054.6,2053.3,1.19282422]
[1772471483323,1.138,2054.5,2053.3,1.19282422]
[1772471483526,2.13708405,2054.5,2053.3,1.19282422]
[1772471483729,1.84564595,2054.3,2053.2,1.21761153]
[1772471483930,0.99908405,2054.1,2052.6,4.8718533]
[1772471484117,0.99908405,2053.9,2052.6,1.21792051]
[1772471484318,0.99683034,2053.6,2052.6,1.21792051]
[1772471484630,1.21749293,2053.4,2052.3,4.87355698]
[1772471484844,2.21432327,2053.4,2052.3,1.21914549]
[1772471485703,0.99458958,2053.3,2052.3,1.21914549]
[1772471485899,3.06313888,2053.4,2052.3,2.41196971]
[1772471485900,1.21749293,2053.4,2052.3,2.41196971]
[1772471486132,1.139,2053.3,2052.3,2.41196971]
[1772471486731,2.35657271,2053.3,2052.3,2.41196971]
[1772471486935,1.139,2053.5,2052.4,1.19282422]
[1772471487129,1.21737436,2053.6,2052.5,1.19282422]
[1772471487518,7.00193471,2053.7,2052.5,1.19282422]
[1772471487519,3.3499392,2053.7,2052.5,1.19282422]
[1772471487834,2.35534962,2053.7,2052.5,1.19282422]
[1772471488725,0.99013868,2054.1,2052.7,1.19282422]
[1772471488925,6.9955499,2054.0,2052.7,2.13982422]
[1772471489431,0.9857184,2053.8,2052.6,1.21796745]
[1772471490717,1.21731508,2053.7,2052.4,4.87233459]
[1772471491031,2.12251883,2053.6,2052.5,1.19282422]
[1772471491418,2.12251883,2053.6,2052.5,1.19382422]
[1772471493736,1.21743364,2053.5,2052.6,1.21796745]
[1772471493919,1.21743364,2053.5,2052.6,2.41079167]
[1772471494240,2.35642073,2053.6,2052.7,1.19282422]
[1772471494534,1.14,2053.5,2052.7,1.19282422]
[1772471494752,1.14,2053.5,2052.6,1.21796745]
[1772471495642,1.21749293,2053.4,2052.5,4.87286982]
[1772471496011,1.21749293,2053.4,2052.5,0.001]
[1772471496212,1.21749293,2053.4,2052.5,1.21902679]
[1772471496653,2.87825582,2053.3,2052.5,0.001]
[1772471496879,0.97049854,2053.2,2052.5,0.001]
[1772471497346,1.84564595,2053.3,2052.3,0.001]
[1772471497347,0.96736108,2053.0,2052.3,0.001]
[1772471497554,1.14,2052.9,2052.3,0.001]
[1772471497720,1.21761153,2053.2,2052.3,0.001]
[1772471497915,1.14,2052.9,2052.3,0.001]
[1772471498422,0.96522586,2052.8,2052.3,0.001]
[1772471498826,1.14,2052.9,2052.3,0.001]
[1772471499034,1.14,2052.8,2052.3,0.001]
[1772471499658,3.94878064,2052.8,2051.7,2.41132509]
[1772471499856,5.05659388,2052.7,2051.7,2.41132509]
[1772471500061,2.18104281,2052.7,2051.7,2.41132509]
[1772471500257,2.18104281,2052.7,2051.7,2.4113186]
[1772471500431,0.9610224,2052.6,2051.6,1.21851408]
[1772471500629,2.87518159,2052.5,2051.4,4.87460862]
[1772471500828,0.9610224,2052.6,2051.5,1.19282422]
[1772471500829,1.14,2052.6,2051.5,1.19282422]
[1772471501031,1.21790812,2052.7,2051.5,1.19282422]
[1772471501252,1.21773015,2053.0,2051.5,1.19282422]
[1772471501472,2.87935074,2052.9,2051.5,1.19282422]
[1772471501763,6.71656655,2053.2,2051.8,2.41126656]
[1772471501764,4.87055747,2053.2,2051.8,2.41126656]
[1772471501939,1.14,2053.1,2051.9,1.19282422]
[1772471502867,0.95292799,2052.9,2051.8,1.21844234]
[1772471503035,1.14,2053.1,2051.9,1.19282422]
[1772471503237,4.01314623,2053.0,2051.9,1.19282422]
[1772471503434,1.14,2053.0,2051.9,1.19282422]
[1772471503860,1.21778946,2052.9,2052.1,1.19282422]
[1772471504963,2.35743364,2053.5,2052.3,1.19282422]
[1772471505135,1.14,2053.7,2052.3,1.19282422]
[1772471505535,1.21725581,2053.8,2052.3,1.19282422]
[1772471505536,2.35725581,2053.8,2052.3,1.19282422]
[1772471505850,1.21737436,2053.6,2052.6,1.21796745]
[1772471506050,1.14,2053.9,2052.7,1.19282422]
[1772471506254,2.35723055,2053.9,2052.7,1.19282422]
[1772471506453,1.21701879,2054.2,2052.7,1.19282422]
[1772471506757,1.14,2054.1,2052.7,1.19282422]
[1772471507069,1.21701879,2054.2,2052.7,1.19282422]
[1772471507563,1.21885694,2054.5,2052.8,1.17048232]
[1772471507764,3.80247363,2054.4,2053.0,1.17048232]
[1772471507967,3.80247363,2054.4,2053.1,1.21767083]
[1772471507968,0.93128952,2054.2,2053.1,1.21767083]
[1772471508284,0.002,2053.6,2052.9,6.04151649]
[1772471508439,0.002,2053.6,2052.5,2.11848232]
[1772471508634,0.002,2053.6,2052.6,1.17048232]
[1772471509677,0.002,2053.6,2052.8,1.17048232]
[1772471509854,0.002,2053.6,2053.0,1.17048232]
[1772471510364,0.002,2053.9,2053.0,1.17048232]
[1772471510964,0.002,2053.9,2053.1,1.17048232]
[1772471511987,0.002,2053.9,2053.3,1.17048232]
[1772471513775,0.002,2054.5,2053.3,1.17048232]
[1772471513975,0.002,2054.5,2053.5,1.17048232]
[1772471514147,0.002,2054.5,2053.7,1.17048232]
[1772471514981,2.13101278,2055.0,2053.7,1.17048232]
[1772471515741,0.002,2055.0,2053.7,1.17048232]
[1772471515990,0.002,2055.0,2053.9,1.17048232]
[1772471516492,2.12357625,2055.3,2053.9,1.17048232]
[1772471516493,0.002,2055.3,2053.9,1.17048232]
[1772471516777,0.002,2055.3,2054.3,1.17048232]
[1772471516980,0.002,2055.3,2054.5,1.17048232]
[1772471517196,0.002,2055.5,2054.5,1.17048232]
[1772471517344,0.002,2055.8,2054.5,1.17048232]
[1772471517846,1.21553945,2056.7,2054.7,1.17048232]
[1772471518048,1.21553945,2056.7,2054.9,1.17048232]
[1772471518253,1.21553945,2056.7,2055.1,1.17048232]
[1772471518750,2.11359586,2056.8,2055.1,1.17048232]
[1772471519143,1.21552221,2056.8,2055.1,1.17048232]
[1772471519764,1.21536217,2057.0,2055.3,1.17048232]
[1772471519964,1.21536217,2057.0,2055.7,1.17048232]
[1772471520168,2.11189975,2057.1,2055.9,1.17048232]
[1772471520377,0.002,2057.1,2055.9,1.17048232]
[1772471521139,1.21731275,2057.1,2056.0,0.945]
[1772471521481,0.002,2057.1,2056.1,1.17048232]
[1772471521681,0.002,2057.1,2056.2,1.17048232]
[1772471522166,0.002,2057.1,2056.4,1.17048232]
[1772471522567,0.002,2057.1,2056.2,1.2158196]
[1772471522861,0.002,2056.5,2056.0,2.16095129]
[1772471523586,0.002,2056.5,2056.0,3.33143361]
[1772471523759,0.002,2056.7,2056.0,3.33143361]
[1772471524075,0.002,2056.7,2056.0,2.16095129]
[1772471524376,0.002,2056.7,2055.9,4.86381322]
[1772471524377,0.002,2056.7,2055.9,2.38645149]
[1772471524546,0.87782911,2056.7,2055.6,1.21618992]
[1772471526080,0.87782911,2056.7,2055.6,1.17048232]
[1772471526081,1.21756987,2056.7,2055.6,1.17048232]
[1772471526382,1.21756987,2056.7,2055.5,4.86498844]
[1772471526592,0.86911973,2056.6,2055.5,4.86498844]
[1772471526968,0.86911973,2056.6,2055.4,4.86513793]
[1772471527148,0.86911973,2056.6,2055.4,6.03562025]
[1772471527350,1.21755603,2056.7,2055.5,1.17048232]
[1772471527657,1.21755603,2056.7,2055.6,0.947]
[1772471528151,0.002,2056.7,2055.7,1.21613075]
[1772471528549,0.002,2056.7,2055.6,1.21615221]
[1772471528751,0.002,2056.7,2055.7,1.17048232]
[1772471529444,0.002,2056.7,2055.7,2.11748232]
[1772471529671,0.86112527,2056.7,2055.7,0.947]
[1772471529873,1.98912527,2056.7,2055.7,0.947]
[1772471530084,0.85912527,2056.6,2055.7,0.947]
[1772471530583,0.85912527,2056.6,2055.6,1.21614335]
[1772471530584,1.21565767,2056.5,2055.6,1.21614335]
[1772471530785,0.85584422,2056.4,2055.1,1.21648581]
[1772471531362,1.98058581,2056.3,2055.1,1.21648581]
[1772471531759,0.85258581,2056.3,2055.1,1.21648581]
[1772471531980,1.21565767,2056.5,2055.2,1.17048232]
[1772471532178,1.21565767,2056.5,2055.4,1.17048232]
[1772471532585,4.86263068,2056.6,2055.5,1.21624908]
[1772471533407,4.86263068,2056.6,2055.5,2.3867314]
[1772471534367,5.70556159,2056.6,2055.1,1.17048232]
[1772471534669,0.84293091,2056.5,2055.2,2.16442662]
[1772471534869,0.84293091,2056.5,2055.2,1.21642662]
[1772471535272,1.128,2056.4,2055.2,1.21642662]
[1772471535586,0.83818156,2056.3,2055.1,1.21644433]
[1772471536098,1.128,2056.2,2055.1,1.21644433]
[1772471536588,1.128,2056.2,2054.5,1.21684108]
[1772471536589,2.5262868,2055.9,2054.5,1.21684108]
[1772471536789,1.21589416,2056.1,2054.6,1.02840748]
[1772471536989,1.21589416,2056.1,2054.8,1.02840748]
[1772471537194,1.21589416,2056.1,2055.5,0.001]
[1772471537580,4.86287932,2056.4,2055.5,0.001]
[1772471537581,1.2157759,2056.4,2055.5,0.001]
[1772471538591,4.86286714,2056.5,2055.5,1.21724908]
[1772471539188,0.82334294,2056.4,2055.5,0.001]
[1772471540600,0.82031191,2056.2,2055.5,0.001]
[1772471541602,1.127,2056.1,2055.5,0.001]
[1772471542305,1.127,2056.2,2055.5,1.13570496]
[1772471542506,1.94130585,2056.2,2055.5,0.001]
[1772471542805,1.21589416,2056.1,2055.5,0.001]
[1772471545902,2.34288112,2056.2,2055.5,0.001]
[1772471546297,2.88941995,2056.1,2055.5,0.001]
[1772471546909,1.21575339,2056.4,2055.5,1.13570496]
[1772471548783,1.21583503,2056.2,2055.6,1.21618992]
[1772471549111,1.21565767,2056.5,2055.6,1.21618992]
[1772471549330,0.002,2056.7,2055.7,1.13470496]
[1772471549484,1.21755011,2056.7,2055.7,1.13470496]
[1772471550004,0.002,2056.7,2055.7,1.13470496]
[1772471550180,0.002,2056.7,2056.1,1.13470496]
[1772471550509,0.002,2056.9,2056.4,1.13470496]
[1772471550881,0.002,2056.9,2056.5,2.35036263]
[1772471551507,0.002,2056.9,2056.6,1.13470496]
[1772471551702,0.002,2057.1,2056.6,1.13470496]
[1772471553305,0.002,2057.3,2056.8,1.13470496]
[1772471554494,0.002,2057.3,2056.7,1.21553945]
[1772471555094,0.002,2057.3,2056.5,4.86254721]
[1772471555606,0.002,2057.3,2056.5,1.21565767]
[1772471556320,0.002,2057.3,2056.6,1.13470496]
[1772471557118,0.002,2057.3,2056.5,1.21565767]
[1772471557296,0.002,2057.3,2056.4,5.81073615]
[1772471557297,0.7758506,2057.3,2056.1,1.21589416]
[1772471557504,1.21524402,2057.2,2056.1,1.21589416]
[1772471558093,1.21524402,2057.2,2056.1,2.35059912]
[1772471558418,4.86265161,2057.4,2056.8,1.13470496]
[1772471558419,0.002,2057.4,2056.8,1.13470496]
[1772471558714,0.002,2057.4,2056.8,2.08370496]
[1772471558914,0.002,2057.6,2056.9,1.13470496]
[1772471559489,0.002,2057.6,2057.0,1.21536217]
[1772471562224,0.7603191,2057.6,2056.6,1.21559856]
[1772471562390,0.002,2057.6,2056.7,1.13470496]
[1772471563821,1.21700777,2057.6,2056.8,1.21548035]
[1772471564399,0.7508311,2057.5,2056.5,1.21563039]
[1772471564598,0.7508311,2057.5,2056.4,1.21569045]
[1772471565706,0.7508311,2057.5,2056.8,0.001]
[1772471565911,2.34112588,2057.4,2056.8,0.001]
[1772471566321,0.74346031,2057.3,2056.5,0.001]
[1772471567809,1.86746031,2057.3,2056.5,0.001]
[1772471568012,1.21524402,2057.2,2056.5,0.001]
[1772471568215,1.94836333,2057.2,2056.5,0.001]
[1772471568627,1.2152336,2057.3,2056.5,1.02107452]
[1772471569025,0.73311931,2057.2,2056.5,0.001]
[1772471570100,1.21530309,2057.1,2056.5,0.001]
[1772471571029,2.34030309,2057.1,2056.5,0.001]
[1772471571826,1.21530309,2057.1,2056.5,0.001]
[1772471572028,2.34130309,2057.1,2056.5,0.001]
[1772471572198,0.002,2057.4,2056.5,1.02107452]
[1772471572199,1.21712588,2057.4,2056.5,1.02107452]
[1772471572400,0.002,2057.4,2056.5,1.02107452]
[1772471573337,0.002,2057.4,2056.6,1.02007452]
[1772471574409,0.002,2057.4,2056.7,2.23561397]
[1772471574611,0.002,2057.4,2056.8,1.02007452]
[1772471575913,0.002,2057.6,2056.8,1.02007452]
[1772471576515,0.002,2057.6,2057.0,1.02007452]
[1772471577442,4.86155875,2057.9,2057.0,1.02007452]
[1772471577621,0.70406415,2058.5,2057.0,1.02007452]
[1772471577821,0.70406415,2058.5,2056.9,1.21542126]
[1772471577822,0.70406415,2058.2,2056.9,1.21542126]
[1772471578020,2.5741071,2058.3,2056.9,1.21542126]
[1772471578021,0.70406415,2058.0,2056.9,1.21542126]
[1772471578222,0.70073112,2057.8,2056.9,1.21542126]
[1772471578457,1.21494872,2057.7,2056.8,5.88175958]
[1772471578725,7.29133812,2057.7,2056.8,5.88175958]
[1772471579041,6.0763894,2057.7,2056.9,1.02007452]
[1772471579245,6.0763894,2057.6,2056.9,1.02007452]
[1772471579449,0.002,2057.2,2056.9,1.02007452]
[1772471580517,0.002,2057.2,2057.0,1.21536217]
[1772471580718,0.002,2057.4,2057.1,1.02007452]
[1772471581118,1.21695668,2057.7,2057.1,1.02007452]
[1772471581443,6.0763894,2057.6,2057.1,1.02007452]
[1772471581831,0.002,2057.7,2057.1,1.02007452]
[1772471582145,0.002,2057.7,2056.9,1.21538549]
[1772471582146,1.2169597,2057.7,2056.9,1.21538549]
[1772471582529,1.2169597,2057.7,2056.8,5.88193302]
[1772471582530,1.2169597,2057.7,2056.7,0.001]
[1772471582848,3.67626444,2057.6,2056.7,0.001]
[1772471583047,0.86816901,2057.6,2056.7,0.001]
[1772471583425,2.3399597,2057.7,2056.7,1.02107452]
[1772471583623,2.80874615,2057.6,2056.7,1.02107452]
[1772471583930,1.2169597,2057.7,2056.7,1.02107452]
[1772471584151,0.002,2057.7,2056.7,1.02107452]
[1772471584325,1.21696115,2057.7,2056.7,1.02107452]
[1772471584519,0.002,2057.7,2056.8,1.21548035]
[1772471584723,2.11873913,2057.7,2056.8,1.21548035]
[1772471584963,0.99373913,2057.5,2056.7,0.001]
[1772471585122,3.80500931,2057.4,2056.7,0.001]
[1772471585322,3.80500931,2057.3,2056.7,0.001]
[1772471585666,4.92700931,2057.2,2056.7,0.001]
[1772471585823,0.99373913,2057.2,2056.7,0.001]
[1772471586027,1.122,2057.2,2056.7,1.21653713]
[1772471586539,0.99373913,2057.1,2056.7,0.001]
[1772471586729,0.99373913,2056.9,2056.5,0.001]
[1772471587047,0.99373913,2056.9,2056.3,0.001]
[1772471587048,0.99373913,2056.7,2055.6,0.952]
[1772471587251,0.99373913,2056.5,2055.5,2.23727845]
[1772471587752,2.80655994,2056.4,2055.5,2.23727845]
[1772471588250,3.80029907,2056.4,2055.5,0.001]
[1772471588448,3.80029907,2056.3,2055.6,0.001]
[1772471588656,1.21589416,2056.1,2055.6,0.001]
[1772471589153,2.33778188,2056.3,2055.6,0.001]
[1772471589540,0.99373913,2056.2,2055.6,0.001]
[1772471589840,0.99373913,2056.2,2055.5,0.001]
[1772471590051,0.99373913,2056.0,2055.5,0.001]
[1772471590635,2.33901245,2055.9,2055.5,0.001]
[1772471592372,2.33901245,2055.9,2055.2,0.001]
[1772471592373,0.99373913,2055.8,2055.2,0.001]
[1772471592554,0.99373913,2055.6,2055.0,0.001]
[1772471592867,0.99373913,2055.3,2054.8,0.001]
[1772471593167,2.11973913,2055.2,2054.8,0.001]
[1772471593329,1.21624908,2055.5,2054.8,0.001]
[1772471593535,1.127,2055.2,2054.8,0.001]
[1772471593950,1.21624908,2055.5,2054.8,0.001]
[1772471594137,1.127,2055.4,2054.8,0.001]
[1772471594458,1.127,2055.4,2054.8,1.02107452]
[1772471594632,1.127,2055.4,2054.8,2.23772148]
[1772471594827,1.21635056,2055.4,2054.8,2.23772148]
[1772471595054,2.34335056,2055.4,2054.8,2.23772148]
[1772471595234,3.33682816,2055.4,2054.8,0.001]
[1772471595435,0.9934776,2055.3,2054.8,0.001]
[1772471595854,1.21635056,2055.4,2054.8,0.001]
[1772471596034,1.127,2055.3,2054.8,0.001]
[1772471596234,1.21613075,2055.7,2054.8,2.34625308]
[1772471596458,0.98969111,2055.5,2054.8,0.001]
[1772471596663,0.98969111,2055.5,2054.5,0.001]
[1772471596864,0.98969111,2055.3,2054.5,0.001]
[1772471597274,1.128,2055.2,2054.5,0.001]
[1772471597689,2.11022797,2055.2,2054.5,0.001]
[1772471597963,3.55633507,2055.1,2053.9,1.21719655]
[1772471598150,3.55633507,2055.1,2053.8,2.34445203]
[1772471598151,0.98122797,2055.0,2053.8,2.34445203]
[1772471598479,1.128,2055.2,2053.3,4.86997175]
[1772471598480,0.97978011,2054.6,2053.3,4.86997175]
[1772471598641,0.97978011,2054.9,2053.4,1.12722578]
[1772471598838,2.5741071,2055.0,2053.6,1.12722578]
[1772471598839,1.21672263,2054.7,2053.6,1.12722578]
[1772471599039,2.34372263,2054.7,2053.6,1.12722578]
[1772471599344,1.127,2054.7,2053.6,1.12722578]
[1772471599534,5.84549843,2055.2,2053.6,1.12722578]
[1772471599752,2.34448581,2055.1,2054.0,1.12722578]